Cogmind - Beta 16.1 @@@ ROGUE MODE // 2026.02.10 @ 22:34:56 Player: TheSkyeDoctor Result: Destroyed by G-47 Trooper with Particle Gun Performance ------------- Evolutions (2) 1000 Regions Visited (4) 800 Robots Destroyed (59) 295 Value Destroyed (1650) 1650 Prototype IDs (3) 60 Alien Tech Used (0) 0 Bonus (0) 0 TOTAL SCORE: 3805 Bonus ------- None Cogmind --------- Core Integrity 0/550 Matter 210/300 Energy 280/280 System Corruption 0% Temperature Cool (9) Movement Rolling (85) Ox1 Location -8/Storage Parts ------- > --- POWER (1) -------- Heavy Ion Engine > --- PROPULSION (2) --- Wheel Wheel > --- UTILITY (5) ------ Large Storage Unit Visual Processing Unit Improved Signal Interpreter Melee Analysis Suite Improved Propulsion Shielding > --- WEAPON (3) ------- Flak Cannon Heavy Hammer > --- INVENTORY (15) --- Deuterium Engine Wheel Wheel Compact Matter Pod (150) Peak State ------------ > --- POWER ------------ Heavy Ion Engine > --- PROPULSION ------- Wheel Wheel > --- UTILITY ---------- Large Storage Unit Visual Processing Unit Improved Signal Interpreter Melee Analysis Suite Improved Propulsion Shielding > --- WEAPON ----------- Flak Cannon Flak Cannon Heavy Hammer > --- INVENTORY -------- Deuterium Engine Wheel Compact Matter Pod [Rating: 25] Favorites ----------- Power Deuterium Engine Engine Deuterium Engine Propulsion Wheel Wheel Wheel Utility Large Storage Unit Device Improved Terrain Scanner Storage Large Storage Unit Processor Visual Processing Unit Protection Light Armor Plating Weapon Assault Rifle Energy Gun Beam Rifle Ballistic Gun Assault Rifle Ballistic Cannon Flak Cannon Launcher Rocket Launcher Impact Weapon Hammer Build | -11 -10 -9 -8 -8 ------- Run | Yrd Mat Mat Mat Sto Slots Evolved 4 | . . 2 2 . Power . | . . . . . Propulsion . | . . . . . Utility 3 | . . 2 1 . Weapon 1 | . . . 1 . Parts Attached 47 | 7 2 14 12 12 Power 7 | 1 . 2 2 2 Engine 7 | 1 . 2 2 2 Core . | . . . . . Reactor . | . . . . . Propulsion 11 | 2 1 3 2 3 Treads . | . . . . . Leg . | . . . . . Wheel 11 | 2 1 3 2 3 Hover . | . . . . . Flight . | . . . . . Utility 13 | 2 . 6 4 1 Device 2 | 1 . 1 . . Storage 2 | 1 . 1 . . Processor 5 | . . 2 3 . Hackware . | . . . . . Protection 4 | . . 2 1 1 Artifact . | . . . . . Weapon 16 | 2 1 3 4 6 Energy Gun 1 | . . . 1 . Energy Cannon . | . . . . . Ballistic Gun 7 | 2 1 2 1 1 Ballistic Cannon 3 | . . . 1 2 Launcher 3 | . . . 1 2 Special Weapon . | . . . . . Impact Weapon 2 | . . 1 . 1 Slashing Weapon . | . . . . . Piercing Weapon . | . . . . . Special Melee Weapon . | . . . . . Unidentified Prototypes 3 | . . . . 3 Parts Lost 30 | . . 10 9 11 Power 4 | . . 1 2 1 Propulsion 8 | . . 3 2 3 Utility 6 | . . 3 2 1 Weapon 12 | . . 3 3 6 Highest Loss Streak 8 | . . 5 5 8 To Critical Strikes 1 | . . 1 . . Average Backups 5 | 2 5 6 7 4 Power 1 | . 1 1 1 1 Propulsion 1 | . 2 . . . Utility 1 | . 1 1 1 1 Weapon 2 | . . 2 4 1 Tool/Special . | . . . . . Unused Backups 5 | . 1 1 . 3 Power 1 | . . 1 . . Propulsion 2 | . . . . 2 Utility 2 | . 1 . . 1 Weapon . | . . . . . Tool/Special . | . . . . . Average Slot Usage (%) 92 | . 100 96 90 82 Engine 10 | . 14 11 8 6 Wheel 19 | . 28 21 15 11 Device 4 | . 14 5 . . Storage 10 | . 14 11 9 9 Processor 16 | . . 15 26 27 Protection 6 | . . 11 4 4 Ballistic Gun 13 | . 28 15 8 3 Ballistic Cannon 2 | . . . 2 7 Launcher 1 | . . . 2 3 Impact Weapon 5 | . . 5 9 8 Peak Build Rating 25 | 9 9 16 23 25 Average Rating 15 | 5 9 13 20 20 On Entrance 11 | . 9 9 15 22 Avg Prop Armor Cover (%) . | . . . . . Naked Turns . | . . . . . Heaviest Build 45 | 12 13 40 43 45 Greatest Support 26 | 26 26 20 20 20 Greatest Overweight (x) 10 | . . 3 3 10 Average Overweight (x) . | . . . 1 2 Largest Inventory Capacity 15 | 8 8 15 15 15 Average Capacity 11 | 7 8 11 15 15 Most Carried 11 | 5 8 11 10 7 Average Carried 5 | 2 5 6 7 4 Final Capacity 15 | 8 8 15 15 15 Final Carried 10 | 4 8 10 5 4 Class Distribution -------------------- 100% | Mutant Dominant Class ---------------- Mutant | -10/Materials Mutant | -9/Materials Mutant | -8/Materials Mutant | -8/Storage Resources | -11 -10 -9 -8 -8 ----------- Run | Yrd Mat Mat Mat Sto Matter Collected 1685 | 321 47 484 345 488 Remotely . | . . . . . Salvage Created 1772 | 100 47 587 451 587 Parts 91 | 7 7 28 19 30 Haulers Intercepted . | . . . . . Recyclers Shooed . | . . . . . Parts Field Recycled . | . . . . . Retrieved Matter . | . . . . . Parts Self-Destructed . | . . . . . Prevented . | . . . . . Parts Restored . | . . . . . Kills | -11 -10 -9 -8 -8 ------- Run | Yrd Mat Mat Mat Sto Combat Hostiles Destroyed 43 | . 3 14 9 17 Melee 8 | . . 3 4 1 Guns 16 | . 3 9 . 4 Cannons 8 | . . . 1 7 AOE 5 | . . . 3 2 Classes Destroyed 12 | 2 1 4 4 1 Worker 4 | . . . 2 2 Builder 2 | . . . 1 1 Tunneler 2 | 2 . . . . Recycler 1 | 1 . . . . Mechanic 3 | . . 1 . 2 Operator 1 | . . . 1 . Watcher 3 | . . 1 . 2 Swarmer 13 | . 3 3 . 7 Grunt 19 | . . 8 7 4 Duelist 1 | . . . 1 . Sentry 8 | . . 3 1 4 Hunter 2 | . . . . 2 Best Kill Streak 12 | 3 3 3 5 12 Combat Bots Only 8 | . 3 3 4 8 Max Kills in Single Turn 3 | 1 1 1 2 3 Gunslinging . | . . . . . Exploded 2 | . . . 2 1 Melee 1 | . . 1 1 1 Uniques/NPCs Destroyed . | . . . . . Combat | -11 -10 -9 -8 -8 -------- Run | Yrd Mat Mat Mat Sto Hostile Shots Fired 354 | . 16 108 70 160 Missed 86 | . 4 22 17 43 Hits 268 | . 12 86 53 117 Melee 2 | . . . 2 . Projectile 266 | . 12 86 51 117 Critical Strikes 12 | . . 5 3 4 Damage Taken 3601 | . 98 1053 877 1573 Core 821 | . 43 227 183 368 Absorbed by Shields . | . . . . . Redirected to Shielding 9 | . . . . 9 Core Remaining (%) 75 | 100 82 43 . . Volleys Fired 155 | 16 7 59 29 44 Largest 2 | 2 2 2 2 2 Hottest 86 | 40 40 45 86 74 Shots Fired 263 | 32 14 95 57 65 Gun 204 | 32 14 95 35 28 Cannon 43 | . . . 14 29 Launcher 16 | . . . 8 8 Special . | . . . . . Kinetic 240 | 32 14 95 42 57 Thermal 7 | . . . 7 . Explosive 16 | . . . 8 8 Electromagnetic . | . . . . . Robot Hit Streak 15 | 7 4 15 5 11 Robot Miss Streak 8 | 2 4 4 4 8 Penetration Max . | . . . . . Secondary Targets . | . . . . . Shots Hit Robots 196 | 18 6 75 46 51 Core Hits 100 | 4 3 18 20 55 Critical Kills 1 | . . . 1 . Critical Parts Destroyed 10 | . . 4 2 4 Critical Strikes 12 | . . 4 4 4 Destroy 1 | . . . 1 . Blast 1 | . . . 1 . Smash 10 | . . 4 2 4 Melee Attacks 40 | . . 11 18 11 Impact 40 | . . 11 18 11 Slashing . | . . . . . Piercing . | . . . . . Sneak Attacks 3 | . . . . 3 Combat Hostiles . | . . . . . Follow-up Attacks . | . . . . . Damage Inflicted 4389 | 200 93 1263 1308 1525 Guns 1893 | 200 93 1000 349 251 Cannons 650 | . . . 158 492 Explosions 821 | . . . 347 474 Melee 1025 | . . 263 454 308 Ramming . | . . . . . Kinetic 2499 | 200 93 1000 463 743 Thermal 44 | . . . 44 . Explosive 821 | . . . 347 474 Electromagnetic . | . . . . . Impact 1025 | . . 263 454 308 Slashing . | . . . . . Piercing . | . . . . . Highest Corruption . | . . . . . Average Corruption . | . . . . . Corruption Purged . | . . . . . Corruption Blocked . | . . . . . Overload Shots . | . . . . . Overflow Damage 366 | . . 92 67 207 Projectiles . | . . . . . Explosions 32 | . . . 25 7 Melee 334 | . . 92 42 200 Knockbacks 16 | . . 1 2 13 Impact 3 | . . 1 1 1 Kinetic 10 | . . . 1 9 Secondary 3 | . . . . 3 Self-Inflicted Damage 118 | . . . 47 71 Shots 5 | . . . 1 4 Rammed . | . . . . . Targets Rammed . | . . . . . Kicked . | . . . . . Crushed . | . . . . . Highest Temperature 134 | . . 37 92 134 Average Temperature 26 | . . 11 20 49 Received Heat Transfer 1281 | . . 453 360 468 Siege Activations . | . . . . . Martial Activations . | . . . . . Shielding Activations . | . . . . . Robots Disrupted . | . . . . . Combat Hostiles . | . . . . . Robots Corrupted 7 | . . 2 1 4 Combat Hostiles 6 | . . 2 1 3 Parts Fried 10 | . . 4 1 5 Impact Corruptions 16 | . . 5 2 9 Robots Melted . | . . . . . Combat Hostiles . | . . . . . Parts Melted . | . . . . . Heat Transferred 111 | . . . 111 . Parts Sabotaged . | . . . . . Parts Stolen . | . . . . . Parts Stripped . | . . . . . Power Chain Reactions . | . . . . . Alert | -11 -10 -9 -8 -8 ------- Run | Yrd Mat Mat Mat Sto Maximum Alert Level 1 | . . . . 1 Low Security (%) 98 | 100 100 100 100 90 Level 1 1 | . . . . 9 Level 2 . | . . . . . Level 3 . | . . . . . Level 4 . | . . . . . Level 5 . | . . . . . High Security . | . . . . . Max Security . | . . . . . Peak Influence 362 | 5 60 121 173 362 Initial 72 | . . . 7 72 Average 42 | 1 10 36 38 94 Influence Increases 1405 | 15 75 403 362 550 Destroy 0b10 Robot/C 860 | . 60 280 180 340 Destroy 0b10 Robot/NC 80 | 15 . 10 20 35 Destroy Leader 236 | . 10 82 40 104 Successful Hack 31 | . 5 13 9 4 Disable Machine 45 | . . 15 15 15 Destroy Structure 108 | . . 3 68 37 Partial Spotted 15 | . . . 15 . Lose Combat Pursuer 30 | . . . 15 15 Influence Decreases 1399 | 15 75 384 208 717 Entered New Map 113 | . . . 12 101 Time Decay 664 | 15 75 226 142 206 Lost Part 257 | . . 93 54 110 Purge Threat 365 | . . 65 . 300 Squads Dispatched 10 | . . 2 2 6 Investigation 2 | . . . . 2 Extermination . | . . . . . Reinforcement 5 | . . 2 1 2 Assault . | . . . . . Garrison 3 | . . . 1 2 Intercept . | . . . . . Searches Triggered . | . . . . . Construction Impeded 1 | . . . . 1 Haulers Reinforced . | . . . . . Active Scanning Responses . | . . . . . Cargo Convoy Interrupts . | . . . . . Stealth | -11 -10 -9 -8 -8 --------- Run | Yrd Mat Mat Mat Sto Distress Signals 5 | . . . 2 3 Communications Jammed . | . . . . . Distress Signals . | . . . . . Times Spotted 60 | . 3 20 13 24 Peak Tracking Total 7 | . 3 5 4 7 Tactical Retreats 2 | . . . 1 1 Traps | -11 -10 -9 -8 -8 ------- Run | Yrd Mat Mat Mat Sto Traps Triggered 1 | . . . . 1 Indirectly . | . . . . . Trap Hack Attempts . | . . . . . Triggered . | . . . . . Disarmed . | . . . . . Reprogrammed . | . . . . . Reused . | . . . . . Traps Extracted . | . . . . . Installed . | . . . . . Triggered . | . . . . . Machines | -11 -10 -9 -8 -8 ---------- Run | Yrd Mat Mat Mat Sto Machines Disabled 3 | . . 1 1 1 Max in Single Turn 1 | . . 1 1 1 Garrison Access 1 | . . . 1 . Machines Repaired . | . . . . . Machines Dismantled . | . . . . . Machines Sabotaged . | . . . . . Overloaded Fab Kills . | . . . . . Hacking | -11 -10 -9 -8 -8 --------- Run | Yrd Mat Mat Mat Sto Machines Accessed 14 | . 4 4 3 3 Terminals 11 | . 4 3 2 2 Fabricators . | . . . . . Repair Stations . | . . . . . Recycling Units . | . . . . . Scanalyzers 1 | . . 1 . . Garrison Access 2 | . . . 1 1 Total Hacks 30 | . 6 7 8 9 Successful 11 | . 1 4 3 3 Failed 19 | . 5 3 5 6 Catastrophic 10 | . 3 2 2 3 Database Lockouts . | . . . . . Manual 12 | . 4 3 4 1 Terminals 22 | . 6 5 5 6 Fabricators . | . . . . . Repair Stations . | . . . . . Recycling Units . | . . . . . Scanalyzers 2 | . . 2 . . Garrison Access 6 | . . . 3 3 Terminal Hacks 9 | . 1 3 2 3 Open Door 1 | . . . . 1 Level Access Points 1 | . . . 1 . Branch Access Points 1 | . . 1 . . Emergency Access Points 1 | . . 1 . . Alert Level 1 | . . . 1 . Unreport Threat 3 | . . 1 . 2 Zone Layout 1 | . 1 . . . Fabricator Hacks . | . . . . . Repair Station Hacks . | . . . . . Recycling Unit Hacks . | . . . . . Scanalyzer 1 | . . 1 . . Retrieve Study 1 | . . 1 . . Garrison Access Hacks 1 | . . . 1 . Seal Access 1 | . . . 1 . Unauthorized Hacks . | . . . . . Terminals . | . . . . . Fabricators . | . . . . . Repair Stations . | . . . . . Recycling Units . | . . . . . Scanalyzers . | . . . . . Garrison Access . | . . . . . Data Cores Recovered . | . . . . . Used . | . . . . . Hacking Detections 12 | . 4 3 3 2 Full Trace Events 2 | . . . 1 1 Feedback Events . | . . . . . Feedback Blocked . | . . . . . Robot Schematics Acquired . | . . . . . Robots Built . | . . . . . Authchips . | . . . . . Time . | . . . . . Total Robot Build Rating . | . . . . . Part Schematics Acquired . | . . . . . Parts Built . | . . . . . Authchips . | . . . . . Time . | . . . . . Total Part Build Rating . | . . . . . Part Studies Acquired 1 | . . 1 . . Parts Repaired . | . . . . . Time . | . . . . . Parts Recycled . | . . . . . Recycled Matter . | . . . . . Retrieved Matter . | . . . . . Retrieved Components . | . . . . . Parts Scanalyzed . | . . . . . Part Schematics Acquired . | . . . . . Parts Damaged . | . . . . . Bothacking | -11 -10 -9 -8 -8 ------------ Run | Yrd Mat Mat Mat Sto Used RIF Installer . | . . . . . Robots Hacked . | . . . . . Non-combat . | . . . . . Combat . | . . . . . Robot Hacks Applied . | . . . . . Relay Couplers Released . | . . . . . Fabnet Peak Effective % . | . . . . . Robots Rewired . | . . . . . Allies Hacked . | . . . . . Hacks Repelled . | . . . . . Allies | -11 -10 -9 -8 -8 -------- Run | Yrd Mat Mat Mat Sto Total Allies . | . . . . . Largest Group . | . . . . . Highest-Rated Group . | . . . . . Highest-Rated Ally . | . . . . . Total Orders . | . . . . . Ally Attacks . | . . . . . Total Damage . | . . . . . Kills . | . . . . . Allies Corrupted . | . . . . . Allies Melted . | . . . . . Intel | -11 -10 -9 -8 -8 ------- Run | Yrd Mat Mat Mat Sto Active Infowar (turns) 1563 | 16 385 349 377 436 Optics 813 | . . . 377 436 Terrain 702 | 16 385 301 . . Seismic 48 | . . 48 . . Robot Analysis Total . | . . . . . Derelict Logs Recovered . | . . . . . Drone Launches . | . . . . . Drone Recoveries . | . . . . . Exploration | -11 -10 -9 -8 -8 ------------- Run | Yrd Mat Mat Mat Sto Turns Passed 2095 | 115 385 781 378 436 Spaces Moved 1222 | 45 261 461 220 235 Core 9 | 5 . . . 4 Treads . | . . . . . Legs . | . . . . . Wheels 1213 | 40 261 461 220 231 Hover . | . . . . . Flight . | . . . . . Fastest Speed 50 | 50 80 80 85 85 Average Speed 91 | 85 88 84 93 106 Slowest Speed 550 | 90 90 115 115 550 Overloaded Moves . | . . . . . Propulsion Burnouts . | . . . . . Robots Hopped . | . . . . . Potential Cave-ins 2 | . . . . 2 Cave-ins Triggered . | . . . . . Exploration Rate (%) 29 | 3 43 33 28 39 Regions Visited 4 Branch Regions 1 Pre-discovered Areas 1 | . . . . 1 Known Exits Taken 2 | . . 1 1 . Unknown Exits Taken 2 | 1 1 . . . Scrap Searched . | . . . . . Spaces Dug . | . . . . . Terrain Destroyed 119 | . . . 82 37 Melee . | . . . . . Projectile 1 | . . . . 1 AOE 118 | . . . 82 36 Terrain Rammed . | . . . . . Walls Destroyed . | . . . . . Machines Disabled . | . . . . . Actions | -11 -10 -9 -8 -8 --------- Run | Yrd Mat Mat Mat Sto Total 1889 | 92 400 749 307 341 Wait 366 | 14 123 181 21 27 Move 1218 | 44 260 460 219 235 Hop . | . . . . . Pick Up 52 | 11 6 18 7 10 Fast Attach . | . . . . . Attach 41 | 7 . 12 11 11 Detach . | . . . . . Swap 9 | . 2 3 2 2 Drop 8 | . 2 5 . 1 Fire 155 | 16 7 59 29 44 Melee 40 | . . 11 18 11 Ram . | . . . . . Kick . | . . . . . Crush . | . . . . . Escape Stasis . | . . . . . Rewire . | . . . . . Trap . | . . . . . Miscellaneous . | . . . . . Route ------- -11/Scrapyard -10/Materials (discovered 2 exits: *Mat x2) -9/Materials (discovered 2 exits: *Mat / *Min) -8/Materials (discovered 4 exits: Fac x3 / *Sto) -8/Storage History --------- Turn | Location | Event 13 | -11/Scrapyard | Discovered new exit (range 16) 116 | -11/Scrapyard | Entered Materials 221 | -10/Materials | Discovered new exit (range 13) 308 | -10/Materials | Build established: Mutant 428 | -10/Materials | Discovered new exit (range 10) 501 | -10/Materials | Entered another Materials area 501 | -9/Materials | Evolved 2 slots: Utility x2 840 | -9/Materials | Lost 5 parts (1p2n2u) 901 | -9/Materials | Core integrity fell below 50% 918 | -9/Materials | Discovered new exit (range 16) 1115 | -9/Materials | Identified exit to Mines 1199 | -9/Materials | Discovered new exit (range 3) 1280 | -9/Materials | Identified exit to Materials 1282 | -9/Materials | Entered another Materials area 1282 | -8/Materials | Evolved 2 slots: Utility x1, Weapon x1 1329 | -8/Materials | Garrison activated, responded to threat 1425 | -8/Materials | Identified exit to Factory 1513 | -8/Materials | Lost 5 parts (1p2n2w) 1644 | -8/Materials | Discovered new exit (range 4) 1647 | -8/Materials | Identified exit to Storage 1660 | -8/Materials | Entered Storage 1760 | -8/Storage | Core integrity fell below 50% 1801 | -8/Storage | Core integrity fell below 20% 1829 | -8/Storage | Destroyed 7 combat bots 1835 | -8/Storage | Lost 8 parts (1p3n1u3w) 1858 | -8/Storage | Learned location of Armory (-3) 1901 | -8/Storage | Garrison activated, responded to threat 1958 | -8/Storage | Destroyed 8 combat bots 2092 | -8/Storage | Garrison activated, responded to threat 2096 | -8/Storage | Destroyed by G-47 Trooper with Particle Gun Last Messages --------------- K-01 Serf collects debris. U-05 Engineer lays Concrete. K-01 Serf collects debris. Acquired 22 matter. U-05 Engineer lays Concrete. U-05 Engineer builds a Wall. U-05 Engineer lays Concrete. Acquired 28 matter. U-05 Engineer builds a Wall. U-05 Engineer lays Concrete. Y-45 Defender destroyed. U-05 Engineer lays Concrete. Acquired 44 matter. Connecting with Door Terminal... Acquired Wheel+. Flak Cannon destroyed. G-47 Trooper knocked back. G-47 Trooper calls for garrison reinforcements. ALERT: Activating Garrison Access S001. G-47 Trooper knocked back. Map ----- +----------------------------------------------------+ | ?????????????????????????????????? | | ?????????????????????????????????? | | ?????????????????????????????????? | | ?????????????????????????????????? | | ?????????????????????????????????? | | ?????????????????????????????????? | | ?????????????????????????????????? | | ?????????????????????????????????? | | ??????????????###????????????????? | | ????????####### ###??????????????? | | ????????# """" [= #??????????????? | | ????????# """" #??????????????? | | ????????# """" #??????????????? | | ????????# """" #""""??????????? | | ????????# ## #??????????? | | ????????# #T #??????????? | | ????????# ## ###########? | | ????????# ## # [ # | | ??????###########+## + ! # | | ####### ## # # | | *! # #= / # | | " *! """ # ]### ## # | | " ! "" # #?# ############# | | " ! = + ###+#######?????? | | # " ##g #?????? | | #### # ##% T ##g @ #?????? | | ####### # " ## """" #?????? | | # # # # "??"" #?????? | | =#=# + "???"" #?????? | | T ###### ""???" #?????? | | #*##+######## ""??" #?????? | | # # # ## """" #?????? | | ## #### ## #?????? | | ?# ???# ###########?????? | | ?# ???# ]]] #???????????????? | | ?# ???# ]] #???????????????? | | ?# ???# %] #???????????????? | | ?+ ???#% #???????????????? | | ?# ??/ #####???????????? | | ?# ?# % # #???????????? | | ?# ########+# #???????????? | | ?# + #???????????? | | ??????#### #####???????????? | | ?????????# #???????????????? | | ?????????# #???????????????? | | ????????##+##+##+#???????????????? | | ????????# #???????????????? | | ????????# """ #???????????????? | | ????????# """" #???????????????? | | ????????# """ // #???????????????? | +----------------------------------------------------+ Best States ------------- Heat Dissipation 31 Energy Generation 14 Energy Capacity 280 Matter Stores 300 Matter Capacity 300 Sight Range 18 Terrain Scan Range 16 Terrain Scan Density 10 Armor Coverage 300 Propulsion Shielding 66 Evasion (%) 44 Targeting Accuracy 5 Melee Accuracy 5 Item Schematics ----------------- None Robot Schematics ------------------ None Fabricated ------------ Nothing Repaired ---------- Nothing Studied --------- Wheel | -9/Materials | Hacked Alien Tech Used ----------------- None Achievements -------------- Hammer Time Challenges ------------ None Game ------ Seed DispersalArcsightShredder Manual? 0 Play Time 00:29:09 Cumulative 15.5 hours Start 2026.02.10 @ 22:06:01 End 2026.02.10 @ 22:34:56 Sessions 1 Manual Loads 0 Difficulty Rogue Special Mode None Game No. 35 Rogue 35 Adventurer 0 Explorer 0 Win Type - Total 0 Types 0/0/0/0/0/0/0/0/0/0 Lore% 15 Gallery% 20 Achievement% 16 Wizard Run 0 Options --------- Layout 1 ASCII 0 Keyboard 0 Movement Mouse Keybinds 0 Fullscreen 1 Font 24/Smallcaps Map View 50x35 Zoom Use 0% Tactical HUD 0 Map Filters NONE Filters NONE Steam 1 RUN: 3b22a64d-7e33-4771-b4e7-54f416d5e6d7